fUST/lending_fUST_20250208
["ID","MTS","AMOUNT","RATE_DAILY","PERIOD"]
[352288152,1739028656088,-500.0,0.00011643,2]
[352288153,1739028656098,-323.919975,0.00011643,2]
[352288154,1739028656108,-3595.4,0.00011643,2]
[352288155,1739028656118,-323.919974,0.00011643,2]
[352288156,1739028656127,-500.0,0.00011643,2]
[352288157,1739028656137,-500.0,0.00011643,2]
[352288158,1739028656146,-1135.95,0.00011643,2]
[352288159,1739028656156,-500.0,0.00011643,2]
[352288160,1739028656165,-500.0,0.00011643,2]
[352288161,1739028656175,-1380.87,0.00011643,2]
[352288162,1739028656185,-151.0,0.00011643,2]
[352288163,1739028656196,-151.0,0.00011643,2]
[352288164,1739028656205,-500.0,0.00011643,2]
[352288165,1739028656215,-13809.36,0.00011643,2]
[352288166,1739028656224,-507.58,0.00011643,2]
[352288167,1739028656234,-500.0,0.00011643,2]
[352288168,1739028656243,-4261.71,0.00011643,2]
[352288169,1739028656253,-500.0,0.00011643,2]
[352288170,1739028656263,-1106.77,0.00011643,2]
[352288171,1739028656272,-1231.44,0.00011643,2]
[352288172,1739028656282,-1457.38,0.00011643,2]
[352288173,1739028656291,-500.0,0.00011643,2]
[352288174,1739028656300,-902.95,0.00011643,2]
[352288175,1739028656310,-456.19208065,0.00011643,2]
[352288176,1739028656320,-1648.45,0.00011643,2]
[352288177,1739028656330,-151.0,0.00011643,2]
[352288178,1739028656339,-657.08,0.00011643,2]
[352288179,1739028656348,-500.0,0.00011643,2]
[352288180,1739028656357,-40543.23,0.00011643,2]
[352288182,1739028656367,-500.0,0.00011643,2]
[352288183,1739028656378,-500.0,0.00011643,2]
[352288184,1739028656387,-500.0,0.00011643,2]
[352288185,1739028656397,-500.0,0.00011643,2]
[352288187,1739028656407,-409.847552,0.00011643,2]
[352288189,1739028656417,-409.847552,0.00011643,2]
[352288191,1739028656427,-500.0,0.00011643,2]
[352288205,1739028656546,-500.0,0.00011643,2]
[352288207,1739028656556,-500.0,0.00011643,2]
[352288209,1739028656569,-500.0,0.00011643,2]
[352288211,1739028656579,-409.847552,0.00011643,2]
[352288213,1739028656588,-409.847554,0.00011643,2]
[352288215,1739028656598,-1798.53,0.00011643,2]
[352288217,1739028656609,-500.0,0.00011643,2]
[352288219,1739028656619,-500.0,0.00011643,2]
[352288221,1739028656628,-500.0,0.00011643,2]
[352288223,1739028656637,-1087.96,0.00011643,2]
[352288225,1739028656647,-3375.81,0.00011643,2]
[352288227,1739028656656,-500.0,0.00011643,2]
[352288229,1739028656666,-500.0,0.00011643,2]
[352288231,1739028656675,-803.7,0.00011643,2]
[352288233,1739028656685,-7667.06,0.00011643,2]
[352288235,1739028656695,-500.0,0.00011643,2]
[352288237,1739028656704,-500.0,0.00011643,2]
[352288239,1739028656713,-3234.46,0.00011643,2]
[352288241,1739028656723,-1211.81,0.00011643,2]
[352288243,1739028656732,-1630.44,0.00011643,2]
[352288245,1739028656742,-3066.49,0.00011643,2]
[352288247,1739028656750,-500.0,0.00011643,2]
[352288249,1739028656760,-759.68,0.00011643,2]
[352288251,1739028656770,-500.0,0.00011643,2]
[352288253,1739028656779,-500.0,0.00011643,2]
[352288255,1739028656789,-1431.69,0.00011643,2]
[352288257,1739028656799,-723.31,0.00011643,2]
[352288258,1739028656808,-500.0,0.00011643,2]
[352288260,1739028656818,-4036.51,0.00011643,2]
[352288262,1739028656828,-1422.49,0.00011643,2]
[352288264,1739028656838,-500.0,0.00011643,2]
[352288266,1739028656847,-500.0,0.00011643,2]
[352288268,1739028656857,-1021.94,0.00011643,2]
[352288270,1739028656866,-934.34,0.00011643,2]
[352288272,1739028656876,-500.0,0.00011643,2]
[352288274,1739028656886,-186.55205861,0.00011643,2]
[352288276,1739028656895,-1181.28,0.00011643,2]
[352288278,1739028656904,-500.0,0.00011662,2]
[352288280,1739028656914,-1975.0,0.0001167,2]
[352288282,1739028656924,-537.0,0.0001167,2]
[352288284,1739028656934,-2296.0,0.0001167,2]
[352288286,1739028656945,-600.0,0.00011691,2]
[352288288,1739028656957,-20000.000002,0.00011761,2]
[352288290,1739028656967,-286.712888,0.00011761,2]
[352288292,1739028656977,-286.712888,0.00011761,2]
[352288295,1739028656988,-151.0,0.0001178,2]
[352288297,1739028656997,-151.0,0.0001178,2]
[352288299,1739028657007,-151.0,0.0001178,2]
[352288301,1739028657016,-228.705633,0.0001178,2]
[352288302,1739028657025,-151.0,0.0001178,2]
[352288304,1739028657034,-151.0,0.0001178,2]
[352288306,1739028657044,-151.0,0.0001178,2]
[352288308,1739028657054,-1705.4571461,0.0001178,2]
[352288310,1739028657070,-151.0,0.0001178,2]
[352288312,1739028657090,-151.0,0.0001178,2]
[352288315,1739028657100,-253.832148,0.0001178,2]
[352288317,1739028657111,-253.832148,0.0001178,2]
[352288319,1739028657121,-184.845513,0.0001178,2]
[352288320,1739028657130,-184.845513,0.0001178,2]
[352288322,1739028657140,-151.0,0.0001178,2]
[352288324,1739028657150,-151.0,0.0001178,2]
[352288326,1739028657160,-500.0,0.0001178,2]
[352288328,1739028657170,-255.089062,0.0001178,2]
[352288331,1739028657180,-255.089062,0.0001178,2]
[352288332,1739028657190,-447.214076,0.0001178,2]
[352288334,1739028657202,-447.214076,0.0001178,2]
[352288336,1739028657212,-224.552441,0.0001178,2]
[352288338,1739028657222,-224.552441,0.0001178,2]
[352288340,1739028657232,-850.583394,0.0001178,2]
[352288342,1739028657241,-850.583394,0.0001178,2]
[352288344,1739028657250,-580.59,0.0001178,2]
[352288346,1739028657260,-500.0,0.0001178,2]
[352288348,1739028657269,-343.41394,0.0001178,2]
[352288350,1739028657279,-343.41394,0.0001178,2]
[352288352,1739028657288,-500.0,0.0001178,2]
[352288354,1739028657298,-252.348026,0.0001178,2]
[352288356,1739028657307,-759.3,0.0001178,2]
[352288358,1739028657316,-1403.03,0.0001178,2]
[352288360,1739028657326,-500.0,0.0001178,2]
[352288362,1739028657335,-271.939146,0.0001178,2]
[352288364,1739028657344,-271.939146,0.0001178,2]
[352288366,1739028657354,-500.0,0.0001178,2]
[352288368,1739028657363,-728.24,0.0001178,2]
[352288370,1739028657372,-500.0,0.0001178,2]
[352288372,1739028657382,-545.32,0.0001178,2]
[352288374,1739028657391,-1305.14,0.0001178,2]
[352288376,1739028657400,-648.66,0.0001178,2]
[352288378,1739028657410,-1325.01,0.0001178,2]
[352288380,1739028657419,-552.73,0.0001178,2]
[352288382,1739028657428,-546.2,0.0001178,2]
[352288384,1739028657438,-500.0,0.0001178,2]
[352288386,1739028657448,-970.43,0.0001178,2]
[352288388,1739028657458,-1101.61299,0.0001178,2]
[352288390,1739028657468,-500.0,0.0001178,2]
[352288392,1739028657478,-1101.61299,0.0001178,2]
[352288394,1739028657487,-500.0,0.0001178,2]
[352288396,1739028657497,-789.607995,0.0001178,2]
[352288398,1739028657506,-789.607995,0.0001178,2]
[352288400,1739028657515,-500.0,0.0001178,2]
[352288402,1739028657524,-500.0,0.0001178,2]
[352288404,1739028657534,-1270.63,0.0001178,2]
[352288406,1739028657543,-1078.52,0.0001178,2]
[352288408,1739028657552,-610.78,0.0001178,2]
[352288410,1739028657562,-500.0,0.0001178,2]
[352288412,1739028657573,-500.0,0.0001178,2]
[352288414,1739028657584,-500.0,0.0001178,2]
[352288416,1739028657593,-977.07,0.0001178,2]
[352288418,1739028657602,-500.0,0.0001178,2]
[352288420,1739028657612,-500.43,0.0001178,2]
[352288422,1739028657621,-606.56,0.0001178,2]
[352288424,1739028657630,-500.0,0.0001178,2]
[352288426,1739028657640,-500.0,0.0001178,2]
[352288428,1739028657649,-636.281112,0.0001178,2]
[352288430,1739028657660,-156.241418,0.0001178,2]
[352288432,1739028657670,-1089.29,0.0001178,2]
[352288433,1739028657679,-636.281112,0.0001178,2]
[352288436,1739028657688,-156.241418,0.0001178,2]
[352288437,1739028657699,-500.0,0.0001178,2]
[352288439,1739028657708,-368.655151,0.0001178,2]
[352288441,1739028657717,-500.0,0.0001178,2]
[352288443,1739028657727,-368.655151,0.0001178,2]
[352288445,1739028657736,-500.0,0.0001178,2]
[352288447,1739028657746,-500.0,0.0001178,2]
[352288449,1739028657755,-158.53037337,0.0001178,2]
[352288451,1739028657764,-262.55,0.0001178,2]
[352288453,1739028657773,-739.39,0.0001178,2]
[352288455,1739028657783,-262.55,0.0001178,2]
[352288457,1739028657792,-500.0,0.0001178,2]
[352288459,1739028657801,-262.55,0.0001178,2]
[352288461,1739028657810,-262.55,0.0001178,2]
[352288463,1739028657820,-659.83,0.0001178,2]
[352288465,1739028657829,-519.09,0.0001178,2]
[352288467,1739028657838,-324.12945376,0.0001178,2]
[352288469,1739028657847,-500.0,0.0001178,2]
[352288471,1739028657857,-285.219417,0.0001178,2]
[352288473,1739028657867,-500.0,0.0001178,2]
[352288475,1739028657876,-573.25,0.0001178,2]
[352288477,1739028657886,-3183.87,0.0001178,2]
[352288479,1739028657896,-500.0,0.0001178,2]
[352288481,1739028657906,-1717.07,0.0001178,2]
[352288483,1739028657915,-4822.74,0.0001178,2]
[352288485,1739028657924,-500.0,0.0001178,2]
[352288487,1739028657934,-1321.15,0.0001178,2]
[352288489,1739028657943,-500.0,0.0001178,2]
[352288491,1739028657953,-500.0,0.0001178,2]
[352288493,1739028657962,-500.0,0.0001178,2]
[352288495,1739028657972,-838.81,0.0001178,2]
[352288497,1739028657982,-500.0,0.0001178,2]
[352288499,1739028657992,-151.0,0.0001178,2]
[352288501,1739028658001,-979.1,0.0001178,2]
[352288503,1739028658010,-505.07,0.0001178,2]
[352288505,1739028658019,-500.0,0.0001178,2]
[352288507,1739028658029,-707.73,0.0001178,2]
[352288509,1739028658038,-504.44,0.0001178,2]
[352288511,1739028658048,-1207.62,0.0001178,2]
[352288513,1739028658057,-500.0,0.0001178,2]
[352288515,1739028658066,-590.00289293,0.0001178,2]
[352288517,1739028658075,-3595.4,0.0001178,2]
[352288519,1739028658084,-500.0,0.0001178,2]
[352288521,1739028658095,-500.0,0.0001178,2]
[352288523,1739028658104,-1135.95,0.0001178,2]
[352288525,1739028658113,-500.0,0.0001178,2]
[352288527,1739028658123,-500.0,0.0001178,2]
[352288529,1739028658132,-1380.87,0.0001178,2]
[352288531,1739028658142,-151.0,0.0001178,2]
[352288533,1739028658151,-500.0,0.0001178,2]
[352288535,1739028658160,-13809.36,0.0001178,2]
[352288537,1739028658169,-507.58,0.0001178,2]
[352288539,1739028658179,-500.0,0.0001178,2]
[352288541,1739028658188,-4261.71,0.0001178,2]
[352288543,1739028658199,-1106.77,0.0001178,2]
[352288545,1739028658208,-1231.44,0.0001178,2]
[352288547,1739028658217,-1457.38,0.0001178,2]
[352288549,1739028658226,-500.0,0.0001178,2]
[352288551,1739028658235,-902.95,0.0001178,2]
[352288553,1739028658244,-1648.45,0.0001178,2]
[352288555,1739028658253,-657.08,0.0001178,2]
[352288557,1739028658262,-30027.06812399,0.0001178,2]
[352288581,1739028658495,-500.0,0.00011232,2]
[352288583,1739028658504,-500.0,0.00011369,2]
[352288585,1739028658519,-449.65,0.0001178,2]
[352290106,1739029030267,1000.0,0.00018,120]
[352290456,1739029833220,-3337.92094433,9.054e-05,2]
[352290458,1739029833231,-197.3744908,9.616e-05,2]
[352290460,1739029833241,-1000.0,0.0001,4]
[352290462,1739029833251,-740.8681063,0.00010419,2]
[352290464,1739029833260,-400.0,0.00010685,2]
[352290466,1739029833270,-357.33897753,0.00010858,2]
[352290468,1739029833279,-3000.0,0.00010858,2]
[352290470,1739029833289,-250.0,0.00010957,2]
[352290472,1739029833298,-207.24208935,0.00010957,2]
[352290474,1739029833307,-500.0,0.00010958,2]
[352290477,1739029833318,-500.0,0.00010958,2]
[352290479,1739029833327,-387.48187694,0.00010958,2]
[352290480,1739029833336,-469.49770087,0.00010958,2]
[352290482,1739029833346,-500.0,0.00010958,2]
[352290484,1739029833356,-500.0,0.00010958,2]
[352290487,1739029833365,-550.0,0.00010958,2]
[352290491,1739029833375,-500.0,0.00010958,2]
[352290493,1739029833384,-500.0,0.00010958,2]
[352290495,1739029833394,-500.0,0.00010958,2]
[352290497,1739029833403,-500.0,0.00010958,2]
[352290499,1739029833412,-500.0,0.00010958,2]
[352290501,1739029833422,-500.0,0.00010958,2]
[352290503,1739029833431,-500.0,0.00010958,2]
[352290505,1739029833441,-500.0,0.00010958,2]
[352290507,1739029833450,-505.74745093,0.00010958,2]
[352290509,1739029833460,-500.0,0.00010958,2]
[352290511,1739029833469,-500.0,0.00010958,2]
[352290513,1739029833478,-500.0,0.00010958,2]
[352290515,1739029833488,-500.0,0.00010958,2]
[352290517,1739029833497,-504.42604031,0.00010958,2]
[352290518,1739029833507,-500.0,0.00010958,2]
[352290519,1739029833517,-500.0,0.00010958,2]
[352290520,1739029833527,-500.0,0.00010958,2]
[352290521,1739029833536,-440.36897376,0.00010958,2]
[352290522,1739029833547,-500.0,0.00010958,2]
[352290523,1739029833558,-500.0,0.00010958,2]
[352290524,1739029833568,-158.91368951,0.00010958,2]
[352290525,1739029833577,-500.0,0.00010958,2]
[352290526,1739029833587,-500.0,0.00010958,2]
[352290527,1739029833597,-500.0,0.00010958,2]
[352290528,1739029833606,-749.9,0.00010958,2]
[352290529,1739029833617,-501.82110917,0.00010958,2]
[352290530,1739029833627,-500.0,0.00010958,2]
[352290531,1739029833637,-896.41,0.00010958,2]
[352290532,1739029833646,-500.0,0.00010958,2]
[352290533,1739029833656,-500.0,0.00010958,2]
[352290534,1739029833665,-1214.9,0.00010958,2]
[352290535,1739029833675,-500.0,0.00010958,2]
[352290536,1739029833684,-500.0,0.00010958,2]
[352290537,1739029833694,-500.0,0.00010958,2]
[352290538,1739029833704,-501.89671578,0.00010958,2]
[352290539,1739029833713,-500.0,0.00010958,2]
[352290540,1739029833722,-473.11195959,0.00010958,2]
[352290542,1739029833731,-500.0,0.00010958,2]
[352290544,1739029833740,-500.0,0.00010958,2]
[352290546,1739029833749,-500.0,0.00010958,2]
[352290548,1739029833759,-500.0,0.00010958,2]
[352290550,1739029833768,-500.0,0.00010958,2]
[352290552,1739029833777,-500.0,0.00010958,2]
[352290554,1739029833787,-500.0,0.00010958,2]
[352290556,1739029833795,-1250.48,0.00010958,2]
[352290558,1739029833805,-500.0,0.00010958,2]
[352290560,1739029833815,-500.0,0.00010958,2]
[352290561,1739029833824,-514.66767811,0.00010958,2]
[352290563,1739029833834,-1270.46,0.00010958,2]
[352290565,1739029833843,-500.0,0.00010958,2]
[352290567,1739029833852,-500.0,0.00010958,2]
[352290569,1739029833862,-500.0,0.00010958,2]
[352290571,1739029833871,-591.28,0.00010958,2]
[352290572,1739029833881,-798.88,0.00010958,2]
[352290573,1739029833890,-500.0,0.00010958,2]
[352290574,1739029833900,-500.0,0.00010958,2]
[352290575,1739029833909,-500.0,0.00010958,2]
[352290577,1739029833919,-500.0,0.00010958,2]
[352290579,1739029833928,-500.0,0.00010958,2]
[352290599,1739029834133,-236.01426072,0.00010958,2]
[352290601,1739029834143,-500.0,0.00010958,2]
[352290603,1739029834153,-500.0,0.00010958,2]
[352290605,1739029834163,-531.16,0.00010958,2]
[352290607,1739029834172,-500.0,0.00010958,2]
[352290609,1739029834181,-500.0,0.00010958,2]
[352290611,1739029834193,-500.0,0.00010958,2]
[352290614,1739029834205,-500.0,0.00010958,2]
[352290616,1739029834214,-500.0,0.00010958,2]
[352290618,1739029834224,-500.0,0.00010958,2]
[352290619,1739029834234,-957.99,0.00010958,2]
[352290622,1739029834245,-500.0,0.00010958,2]
[352290624,1739029834255,-500.0,0.00010958,2]
[352290625,1739029834265,-500.0,0.00010958,2]
[352290627,1739029834275,-500.0,0.00010958,2]
[352290629,1739029834285,-484.23527531,0.00010958,2]
[352290632,1739029834299,-15.76472469,0.00010958,2]
[352290634,1739029834309,-500.0,0.00010958,2]
[352290636,1739029834319,-500.0,0.00010958,2]
[352290638,1739029834328,-500.0,0.00010958,2]
[352290640,1739029834338,-181.10026531,0.00010958,2]
[352290642,1739029834350,-318.89973469,0.00010958,2]
[352290644,1739029834360,-1251.55,0.00010958,2]
[352290646,1739029834370,-500.0,0.00010958,2]
[352290648,1739029834380,-500.0,0.00010958,2]
[352290650,1739029834390,-500.0,0.00010958,2]
[352290652,1739029834399,-551.24665482,0.00010958,2]
[352290654,1739029834409,-1001.21,0.00010958,2]
[352290656,1739029834419,-501.13571995,0.00010958,2]
[352290658,1739029834429,-500.0,0.00010958,2]
[352290660,1739029834439,-500.0,0.00010958,2]
[352290662,1739029834450,-500.0,0.00010958,2]
[352290664,1739029834459,-500.0,0.00010958,2]
[352290666,1739029834468,-625.50886556,0.00010958,2]
[352290668,1739029834478,-500.0,0.00010958,2]
[352290670,1739029834488,-500.0,0.00010958,2]
[352290672,1739029834497,-500.0,0.00010958,2]
[352290674,1739029834506,-501.50689531,0.00010958,2]
[352290676,1739029834516,-500.0,0.00010958,2]
[352290678,1739029834526,-976.23,0.00010958,2]
[352290681,1739029834536,-500.0,0.00010958,2]
[352290683,1739029834545,-588.28,0.00010958,2]
[352290685,1739029834555,-500.0,0.00010958,2]
[352290687,1739029834564,-500.60379772,0.00010958,2]
[352290689,1739029834573,-500.8107668,0.00010958,2]
[352290691,1739029834582,-531.86419752,0.00010958,2]
[352290693,1739029834592,-500.0,0.00010958,2]
[352290695,1739029834601,-500.0,0.00010958,2]
[352290697,1739029834610,-500.0,0.00010958,2]
[352290699,1739029834619,-500.0,0.00010958,2]
[352290701,1739029834628,-500.0,0.00010958,2]
[352290703,1739029834637,-500.0,0.00010958,2]
[352290705,1739029834647,-500.0,0.00010958,2]
[352290707,1739029834656,-500.0,0.00010958,2]
[352290709,1739029834666,-500.0,0.00010958,2]
[352290711,1739029834677,-500.0,0.00010958,2]
[352290713,1739029834686,-500.0,0.00010958,2]
[352290715,1739029834695,-500.0,0.00010958,2]
[352290717,1739029834704,-500.0,0.00010958,2]
[352290719,1739029834714,-1041.29,0.00010958,2]
[352290721,1739029834724,-500.0,0.00010958,2]
[352290723,1739029834734,-326.36614169,0.00010958,2]
[352290725,1739029834743,-644.7,0.00010958,2]
[352290727,1739029834752,-500.0,0.00010958,2]
[352290729,1739029834761,-500.0,0.00010958,2]
[352290731,1739029834771,-500.0,0.00010958,2]
[352290733,1739029834780,-576.19,0.00010958,2]
[352290735,1739029834789,-500.0,0.00010958,2]
[352290736,1739029834799,-505.52124431,0.00010958,2]
[352290738,1739029834808,-500.0,0.00010958,2]
[352290740,1739029834817,-500.0,0.00010958,2]
[352290742,1739029834826,-500.0,0.00010958,2]
[352290744,1739029834836,-212.51703915,0.00010958,2]
[352290746,1739029834845,-500.0,0.00010958,2]
[352290748,1739029834854,-500.0,0.00010958,2]
[352290750,1739029834863,-503.44,0.00010958,2]
[352290752,1739029834872,-500.0,0.00010958,2]
[352290754,1739029834882,-500.0,0.00010958,2]
[352290756,1739029834891,-500.0,0.00010958,2]
[352290758,1739029834901,-500.0,0.00010958,2]
[352290760,1739029834911,-500.0,0.00010958,2]
[352290762,1739029834920,-8035.30879902,0.00010958,2]
[352290850,1739029839577,-500.0,0.00010958,2]
[352290851,1739029839587,-500.0,0.00010958,2]
[352290852,1739029839597,-500.0,0.00010958,2]
[352290853,1739029839607,-500.0,0.00010958,2]
[352290854,1739029839616,-500.0,0.00010958,2]
[352290855,1739029839626,-500.0,0.00010958,2]
[352290856,1739029839635,-904.43,0.00010958,2]
[352290857,1739029839645,-564.85,0.00010958,2]
[352290858,1739029839655,-500.0,0.00010958,2]
[352290859,1739029839664,-784.19,0.00010958,2]
[352290860,1739029839673,-500.0,0.00010958,2]
[352290861,1739029839683,-500.0,0.00010958,2]
[352290862,1739029839692,-500.0,0.00010958,2]
[352290863,1739029839703,-500.0,0.00010958,2]
[352290864,1739029839712,-500.0,0.00010958,2]
[352290865,1739029839721,-500.0,0.00010958,2]
[352290866,1739029839730,-514.18177375,0.00010958,2]
[352290867,1739029839740,-1214.06,0.00010958,2]
[352290868,1739029839749,-3517.66,0.00010958,2]
[352290870,1739029839758,-996.9,0.00010958,2]
[352290871,1739029839768,-4592.2,0.00010958,2]
[352290872,1739029839777,-500.0,0.00010958,2]
[352290873,1739029839786,-500.0,0.00010958,2]
[352290874,1739029839796,-500.0,0.00010958,2]
[352290875,1739029839805,-500.0,0.00010958,2]
[352290876,1739029839814,-500.0,0.00010958,2]
[352290877,1739029839823,-1582.44,0.00010958,2]
[352290878,1739029839832,-500.0,0.00010958,2]
[352290879,1739029839841,-500.0,0.00010958,2]
[352290880,1739029839851,-165.47161079,0.00010958,2]
[352290881,1739029839863,-334.52838921,0.00010958,2]
[352290882,1739029839874,-500.0,0.00010958,2]
[352290883,1739029839883,-500.0,0.00010958,2]
[352290884,1739029839894,-500.0,0.00010958,2]
[352290885,1739029839904,-500.0,0.00010958,2]
[352290886,1739029839913,-500.0,0.00010958,2]
[352290887,1739029839922,-375.06312054,0.00010958,2]
[352290888,1739029839934,-124.93687946,0.00010958,2]
[352290889,1739029839943,-500.0,0.00010958,2]
[352290890,1739029839955,-500.0,0.00010958,2]
[352290891,1739029839964,-500.0,0.00010958,2]
[352290892,1739029839974,-500.0,0.00010958,2]
[352290893,1739029839986,-500.0,0.00010958,2]
[352290894,1739029839996,-165.51770334,0.00010958,2]
[352290895,1739029840006,-1061.0,0.00010958,2]
[352290896,1739029840016,-500.0,0.00010958,2]
[352290897,1739029840026,-500.0,0.00010958,2]
[352290898,1739029840036,-1022.59,0.00010958,2]
[352290899,1739029840045,-500.0,0.00010958,2]
[352290900,1739029840055,-500.0,0.00010958,2]
[352290901,1739029840065,-3843.95,0.00010958,2]
[352290902,1739029840074,-500.0,0.00010958,2]
[352290903,1739029840084,-3354.53,0.00010958,2]
[352290904,1739029840093,-500.0,0.00010958,2]
[352290905,1739029840102,-500.0,0.00010958,2]
[352290906,1739029840111,-500.0,0.00010958,2]
[352290907,1739029840121,-500.0,0.00010958,2]
[352290908,1739029840130,-500.0,0.00010958,2]
[352290909,1739029840140,-1936.75,0.00010958,2]
[352290910,1739029840150,-500.0,0.00010958,2]
[352290911,1739029840160,-37206.03,0.00010958,2]
[352290912,1739029840170,-500.0,0.00010958,2]
[352290913,1739029840179,-889.93,0.00010958,2]
[352290914,1739029840189,-1320.97,0.00010958,2]
[352290915,1739029840200,-500.0,0.00010958,2]
[352290916,1739029840210,-500.0,0.00010958,2]
[352290917,1739029840220,-12973.68,0.00010958,2]
[352290918,1739029840230,-500.0,0.00010958,2]
[352290919,1739029840240,-1770.68,0.00010958,2]
[352290920,1739029840249,-500.0,0.00010958,2]
[352290921,1739029840259,-500.0,0.00010958,2]
[352290922,1739029840268,-500.0,0.00010958,2]
[352290923,1739029840278,-500.0,0.00010958,2]
[352290924,1739029840287,-500.0,0.00010958,2]
[352290925,1739029840298,-500.0,0.00010958,2]
[352290926,1739029840308,-500.0,0.00010958,2]
[352290927,1739029840318,-500.0,0.00010958,2]
[352290928,1739029840327,-500.0,0.00010958,2]
[352290929,1739029840337,-500.0,0.00010958,2]
[352290930,1739029840347,-1074.6,0.00010958,2]
[352290931,1739029840357,-500.0,0.00010958,2]
[352290933,1739029840367,-1342.28,0.00010958,2]
[352290936,1739029840376,-500.0,0.00010958,2]
[352290937,1739029840385,-1165.52,0.00010958,2]
[352290938,1739029840395,-500.0,0.00010958,2]
[352290939,1739029840405,-500.0,0.00010958,2]
[352290940,1739029840414,-507.09279173,0.00010958,2]
[352290941,1739029840424,-618.82,0.00010958,2]
[352290942,1739029840433,-500.0,0.00010958,2]
[352290943,1739029840443,-500.0,0.00010958,2]
[352290944,1739029840454,-500.0,0.00010958,2]
[352290945,1739029840464,-467.40683247,0.00010958,2]
[352290946,1739029840474,-500.0,0.00010958,2]
[352290947,1739029840486,-1060.33,0.00010958,2]
[352290948,1739029840497,-500.0,0.00010958,2]
[352290949,1739029840507,-1566.54,0.00010958,2]
[352290951,1739029840516,-501.08047821,0.00010958,2]
[352290953,1739029840525,-500.0,0.00010958,2]
[352290954,1739029840535,-500.0,0.00010958,2]
[352290955,1739029840545,-500.0,0.00010958,2]
[352290956,1739029840555,-500.0,0.00010958,2]
[352290957,1739029840565,-500.0,0.00010958,2]
[352290958,1739029840575,-664.84,0.00010958,2]
[352290959,1739029840584,-500.0,0.00010958,2]
[352290960,1739029840593,-500.0,0.00010958,2]
[352290961,1739029840603,-500.0,0.00010958,2]
[352290962,1739029840612,-500.0,0.00010958,2]
[352290963,1739029840622,-500.0,0.00010958,2]
[352290964,1739029840631,-500.0,0.00010958,2]
[352290965,1739029840641,-500.0,0.00010958,2]
[352290966,1739029840650,-288.04560858,0.00010958,2]
[352290967,1739029840660,-500.0,0.00010958,2]
[352290969,1739029840670,-500.0,0.00010958,2]
[352290971,1739029840679,-500.0,0.00010958,2]
[352290973,1739029840689,-2952.23,0.00010958,2]
[352290975,1739029840699,-500.0,0.00010958,2]
[352290977,1739029840708,-500.0,0.00010958,2]
[352290979,1739029840718,-500.0,0.00010958,2]
[352290981,1739029840727,-509.85656518,0.00010958,2]
[352290983,1739029840736,-500.0,0.00010958,2]
[352290985,1739029840746,-500.0,0.00010958,2]
[352290987,1739029840755,-3439.62,0.00010958,2]
[352290989,1739029840764,-500.0,0.00010958,2]
[352290991,1739029840774,-500.0,0.00010958,2]
[352290993,1739029840782,-418.73119519,0.00010958,2]